fUSD/lending_fUSD_20250606
["ID","MTS","AMOUNT","RATE_DAILY","PERIOD"]
[364729174,1749220298678,-480.0,0.00031315,7]
[364729175,1749220298688,-480.0,0.00031315,7]
[364729176,1749220298699,-1570.73,0.00031315,7]
[364729177,1749220298708,-480.0,0.00031315,7]
[364729178,1749220298717,-480.0,0.00031315,7]
[364729179,1749220298729,-480.0,0.00031315,7]
[364729180,1749220298738,-528.17,0.00031315,7]
[364729181,1749220298748,-761.22,0.00031315,7]
[364729182,1749220298758,-480.0,0.00031315,7]
[364729183,1749220298769,-480.0,0.00031315,7]
[364729184,1749220298779,-1220.04,0.00031315,7]
[364729185,1749220298789,-597.43,0.00031315,7]
[364729186,1749220298798,-218.48555047,0.00031315,7]
[364729187,1749220298807,-1362.42,0.00031315,7]
[364729188,1749220298817,-480.0,0.00031315,7]
[364729189,1749220298827,-480.0,0.00031315,7]
[364729190,1749220298837,-1189.05,0.00031315,7]
[364729191,1749220298846,-480.0,0.00031315,7]
[364729192,1749220298855,-985.5,0.00031315,7]
[364729193,1749220298865,-820.31,0.00031315,7]
[364729194,1749220298876,-572.01,0.00031315,7]
[364729195,1749220298885,-1807.04,0.00031315,7]
[364729196,1749220298895,-1262.79,0.00031315,7]
[364729197,1749220298905,-480.0,0.00031315,7]
[364729198,1749220298916,-2516.73,0.00031315,7]
[364729199,1749220298928,-778.34,0.00031315,7]
[364729200,1749220298939,-480.0,0.00031315,7]
[364729201,1749220298950,-839.08,0.00031315,7]
[364729202,1749220298961,-11285.31,0.00031315,7]
[364729203,1749220298972,-1101.15,0.00031315,7]
[364729204,1749220298982,-480.0,0.00031315,7]
[364729205,1749220298992,-3214.08,0.00031315,7]
[364729206,1749220299002,-480.0,0.00031315,7]
[364729207,1749220299012,-480.0,0.00031315,7]
[364729208,1749220299024,-2964.96,0.00031315,7]
[364729209,1749220299034,-873.96,0.00031315,7]
[364729210,1749220299046,-4607.18,0.00031315,7]
[364729211,1749220299056,-480.0,0.00031315,7]
[364729212,1749220299066,-20710.06,0.00031315,7]
[364729213,1749220299076,-183.57839271,0.00031315,7]
[364729214,1749220299087,-522.46857005,0.00031315,7]
[364729215,1749220299096,-1067.02,0.00031315,7]
[364729216,1749220299107,-480.0,0.00031315,7]
[364729217,1749220299116,-612.42,0.00031315,7]
[364729218,1749220299125,-3585.66,0.00031315,7]
[364729219,1749220299135,-480.0,0.00031315,7]
[364729220,1749220299144,-1186.93,0.00031315,7]
[364729221,1749220299154,-1255.39,0.00031315,7]
[364729222,1749220299163,-2364.45,0.00031315,7]
[364729223,1749220299174,-1399.55,0.00031315,7]
[364729224,1749220299183,-825.25,0.00031315,7]
[364729225,1749220299194,-1108.3,0.00031315,7]
[364729226,1749220299203,-491.87,0.00031315,7]
[364729227,1749220299212,-726.54,0.00031315,7]
[364729228,1749220299223,-531.428362,0.00031315,7]
[364729229,1749220299232,-2028.66,0.00031315,7]
[364729230,1749220299242,-1692.8,0.00031315,7]
[364729231,1749220299252,-781.47,0.00031315,7]
[364729232,1749220299261,-1466.18,0.00031315,7]
[364729233,1749220299271,-73191.22,0.00031315,7]
[364729234,1749220299280,-1031.1,0.00031315,7]
[364729235,1749220299289,-1187.36,0.00031315,7]
[364729236,1749220299299,-2308.95,0.00031315,7]
[364729237,1749220299309,-1807.35,0.00031315,7]
[364729238,1749220299318,-1402.86,0.00031315,7]
[364729239,1749220299328,-1648.94,0.00031315,7]
[364729240,1749220299337,-1912.7,0.00031315,7]
[364729241,1749220299347,-4297.8,0.00031315,7]
[364729242,1749220299356,-1127.05,0.00031315,7]
[364729243,1749220299366,-480.0,0.00031315,7]
[364729244,1749220299375,-1433.3,0.00031315,7]
[364729245,1749220299388,-793.28,0.00031315,7]
[364729246,1749220299397,-480.0,0.00031315,7]
[364729247,1749220299407,-845.41,0.00031315,7]
[364729248,1749220299416,-1143.75,0.00031315,7]
[364729249,1749220299426,-4339.46,0.00031315,7]
[364729250,1749220299436,-550.99,0.00031315,7]
[364729251,1749220299445,-480.0,0.00031315,7]
[364729252,1749220299455,-480.0,0.00031315,7]
[364729253,1749220299466,-558.97,0.00031315,7]
[364729254,1749220299476,-705.32,0.00031315,7]
[364729255,1749220299486,-638.49,0.00031315,7]
[364729256,1749220299495,-646.01,0.00031315,7]
[364729257,1749220299505,-5821.7,0.00031315,7]
[364729258,1749220299514,-312.67934074,0.00031315,7]
[364729259,1749220299523,-1415.28,0.00031315,7]
[364729260,1749220299533,-156.57172688,0.00031315,7]
[364729261,1749220299542,-2997.28,0.00031315,7]
[364729262,1749220299551,-2219.2,0.00031315,7]
[364729263,1749220299561,-4881.17,0.00031315,7]
[364729264,1749220299571,-1494.8,0.00031315,7]
[364729265,1749220299580,-480.0,0.00031315,7]
[364729266,1749220299589,-480.0,0.00031315,7]
[364729267,1749220299598,-761.61,0.00031315,7]
[364729268,1749220299609,-2109.18,0.00031315,7]
[364729269,1749220299618,-1044.45,0.00031315,7]
[364729270,1749220299627,-480.0,0.00031315,7]
[364729271,1749220299637,-617.24,0.00031315,7]
[364729272,1749220299646,-6318.65,0.00031315,7]
[364729273,1749220299657,-1804.22,0.00031315,7]
[364729274,1749220299666,-776.29,0.00031315,7]
[364729275,1749220299675,-5806.79,0.00031315,7]
[364729276,1749220299685,-373.68443007,0.00031315,7]
[364729277,1749220299695,-902.05,0.00031315,7]
[364729278,1749220299705,-480.0,0.00031315,7]
[364729279,1749220299715,-677.86,0.00031315,7]
[364729280,1749220299724,-17052.87,0.00031315,7]
[364729281,1749220299733,-1448.58,0.00031315,7]
[364729282,1749220299743,-480.0,0.00031315,7]
[364729283,1749220299753,-480.0,0.00031315,7]
[364729284,1749220299762,-1087.78,0.00031315,7]
[364729285,1749220299771,-596.02,0.00031315,7]
[364729286,1749220299780,-1086.7,0.00031315,7]
[364729287,1749220299789,-1926.02,0.00031315,7]
[364729288,1749220299799,-1310.18,0.00031315,7]
[364729289,1749220299808,-480.01,0.00031315,7]
[364729290,1749220299818,-971.77,0.00031315,7]
[364729291,1749220299831,-2065.59,0.00031315,7]
[364729292,1749220299840,-13307.39,0.00031315,7]
[364729293,1749220299849,-480.0,0.00031315,7]
[364729294,1749220299858,-824.21,0.00031315,7]
[364729295,1749220299868,-2324.9,0.00031315,7]
[364729296,1749220299877,-2178.92,0.00031315,7]
[364729297,1749220299887,-3945.0,0.00031315,7]
[364729298,1749220299896,-480.0,0.00031315,7]
[364729299,1749220299906,-4149.78,0.00031315,7]
[364729300,1749220299916,-3813.84,0.00031315,7]
[364729301,1749220299925,-1365.76,0.00031315,7]
[364729302,1749220299936,-984.68,0.00031315,7]
[364729303,1749220299946,-904.26,0.00031315,7]
[364729304,1749220299955,-480.0,0.00031315,7]
[364729305,1749220299965,-480.0,0.00031315,7]
[364729306,1749220299975,-4903.83,0.00031315,7]
[364729307,1749220299984,-1112.93,0.00031315,7]
[364729308,1749220299993,-813.56,0.00031315,7]
[364729309,1749220300002,-1976.97,0.00031315,7]
[364729310,1749220300011,-3642.55,0.00031315,7]
[364729311,1749220300022,-2033.72,0.00031315,7]
[364729312,1749220300032,-1600.26,0.00031315,7]
[364729313,1749220300042,-878.97,0.00031315,7]
[364729314,1749220300053,-589.27252529,0.00031315,7]
[364729315,1749220300063,-480.0,0.00031315,7]
[364729316,1749220300073,-442.87962365,0.00031315,7]
[364729317,1749220300085,-948.36,0.00031315,7]
[364729318,1749220300095,-10382.45,0.00031315,7]
[364729319,1749220300106,-520.79,0.00031315,7]
[364729320,1749220300117,-536.17318438,0.00031315,7]
[364729321,1749220300126,-1399.06,0.00031315,2]
[364729322,1749220300135,-3570.9,0.00031315,7]
[364729323,1749220300146,-875.0,0.00031315,7]
[364729324,1749220300156,-1610.11,0.00031315,7]
[364729325,1749220300166,-506.97,0.00031315,7]
[364729326,1749220300176,-582.82,0.00031315,7]
[364729327,1749220300185,-5037.96,0.00031315,7]
[364729328,1749220300196,-1069.2,0.00031315,7]
[364729329,1749220300206,-1221.01,0.00031315,7]
[364729330,1749220300217,-2746.68,0.00031315,7]
[364729331,1749220300226,-1159.49,0.00031315,7]
[364729332,1749220300236,-1726.11,0.00031315,7]
[364729333,1749220300247,-480.0,0.00031315,7]
[364729334,1749220300256,-4017.92,0.00031315,7]
[364729335,1749220300266,-4678.49,0.00031315,7]
[364729336,1749220300276,-480.0,0.00031315,7]
[364729337,1749220300285,-1324.34,0.00031315,7]
[364729338,1749220300295,-576.09,0.00031315,7]
[364729339,1749220300306,-1000.0,0.00031315,7]
[364729340,1749220300315,-619.71,0.00031315,7]
[364729341,1749220300325,-1223.35,0.00031315,7]
[364729342,1749220300334,-480.0,0.00031315,7]
[364729343,1749220300344,-480.0,0.00031315,7]
[364729344,1749220300353,-458.03305328,0.00031315,7]
[364729345,1749220300366,-2298.56,0.00031315,7]
[364729346,1749220300376,-1792.53,0.00031315,7]
[364729347,1749220300389,-783.46,0.00031315,7]
[364729348,1749220300399,-488.06,0.00031315,7]
[364729349,1749220300409,-439.18333449,0.00031315,7]
[364729350,1749220300419,-480.0,0.00031315,7]
[364729351,1749220300430,-4227.26,0.00031315,7]
[364729352,1749220300439,-4126.83,0.00031315,7]
[364729353,1749220300450,-985.6,0.00031315,7]
[364729354,1749220300460,-558.35,0.00031315,7]
[364729355,1749220300469,-480.0,0.00031315,7]
[364729356,1749220300479,-1349.15,0.00031315,7]
[364729357,1749220300488,-480.0,0.00031315,7]
[364729358,1749220300498,-946.38,0.00031315,7]
[364729359,1749220300507,-480.0,0.00031315,7]
[364729360,1749220300517,-1972.33,0.00031315,7]
[364729361,1749220300527,-869.99,0.00031315,7]
[364729362,1749220300538,-1957.15,0.00031315,7]
[364729363,1749220300548,-667.66,0.00031315,7]
[364729364,1749220300557,-788.43,0.00031315,7]
[364729365,1749220300567,-480.0,0.00031315,7]
[364729366,1749220300576,-752.97,0.00031315,7]
[364729367,1749220300586,-2371.57,0.00031315,7]
[364729368,1749220300595,-480.0,0.00031315,7]
[364729369,1749220300605,-601.08,0.00031315,7]
[364729370,1749220300615,-480.0,0.00031315,7]
[364729371,1749220300624,-2258.41,0.00031315,7]
[364729372,1749220300634,-480.0,0.00031315,7]
[364729373,1749220300644,-480.0,0.00031315,7]
[364729374,1749220300653,-617.19,0.00031315,7]
[364729375,1749220300665,-957.11,0.00031315,7]
[364729376,1749220300676,-661.16,0.00031315,7]
[364729377,1749220300686,-15596.64,0.00031315,7]
[364729378,1749220300696,-1003.28,0.00031315,7]
[364729379,1749220300706,-1277.26,0.00031315,7]
[364729380,1749220300715,-846.81,0.00031315,7]
[364729381,1749220300724,-1738.04,0.00031315,7]
[364729382,1749220300734,-480.0,0.00031315,7]
[364729383,1749220300745,-2129.46,0.00031315,7]
[364729384,1749220300755,-1214.21,0.00031315,7]
[364729385,1749220300764,-820.16,0.00031315,7]
[364729386,1749220300775,-480.0,0.00031315,7]
[364729387,1749220300785,-2196.5,0.00031315,7]
[364729388,1749220300795,-923.4,0.00031315,7]
[364729389,1749220300805,-2461.07,0.00031315,7]
[364729390,1749220300815,-2342.28,0.00031315,7]
[364729391,1749220300825,-2121.81,0.00031315,7]
[364729392,1749220300834,-1254.9,0.00031315,7]
[364729393,1749220300843,-480.0,0.00031315,7]
[364729394,1749220300852,-1793.96,0.00031315,7]
[364729395,1749220300864,-896.54,0.00031315,7]
[364729396,1749220300873,-2687.86,0.00031315,7]
[364729397,1749220300883,-480.0,0.00031315,7]
[364729398,1749220300892,-979.7,0.00031315,7]
[364729399,1749220300901,-243.8511121,0.00031315,7]
[364729400,1749220300910,-761.13,0.00031315,2]
[364729401,1749220300920,-820.24,0.00031315,7]
[364729402,1749220300929,-873.83,0.00031315,7]
[364729403,1749220300939,-1677.25,0.00031315,7]
[364729404,1749220300948,-1293.09,0.00031315,7]
[364729405,1749220300958,-529.01,0.00031315,7]
[364729406,1749220300968,-1068.09,0.00031315,7]
[364729407,1749220300978,-787.96,0.00031315,7]
[364729408,1749220300987,-232.37679818,0.00031315,7]
[364729409,1749220300996,-1242.86,0.00031315,7]
[364729410,1749220301005,-11034.26,0.00031315,7]
[364729411,1749220301014,-253.63786909,0.00031315,7]
[364729412,1749220301024,-564.91,0.00031315,7]
[364729413,1749220301033,-480.0,0.00031315,7]
[364729414,1749220301045,-937.81,0.00031315,2]
[364729415,1749220301055,-480.0,0.00031315,7]
[364729416,1749220301066,-480.0,0.00031315,7]
[364729417,1749220301077,-671.61,0.00031315,7]
[364729418,1749220301087,-699.69,0.00031315,7]
[364729419,1749220301096,-2147.96,0.00031315,7]
[364729420,1749220301104,-569.84,0.00031315,7]
[364729421,1749220301113,-806.66,0.00031315,7]
[364729422,1749220301124,-1417.78,0.00031315,7]
[364729423,1749220301134,-720.25,0.00031315,7]
[364729424,1749220301143,-1409.97,0.00031315,7]
[364729425,1749220301153,-1915.93,0.00031315,7]
[364729426,1749220301163,-1184.01,0.00031315,7]
[364729427,1749220301172,-1233.97,0.00031315,7]
[364729428,1749220301182,-480.0,0.00031315,7]
[364729429,1749220301192,-480.0,0.00031315,7]
[364729430,1749220301202,-480.0,0.00031315,7]
[364729431,1749220301212,-480.0,0.00031315,7]
[364729432,1749220301222,-239.4279877,0.0003132,7]
[364729433,1749220301232,-186.88884126,0.0003132,7]
[364729434,1749220301242,-151.72367471,0.0003132,7]
[364729435,1749220301252,-241.11839422,0.0003132,7]
[364729436,1749220301261,-151.60863483,0.0003132,7]
[364729437,1749220301271,-151.96736723,0.0003132,7]
[364729438,1749220301281,-180.51135662,0.0003132,7]
[364729439,1749220301290,-154.07971107,0.0003132,7]
[364729440,1749220301300,-166.91813878,0.0003132,7]
[364729441,1749220301310,-169.87370867,0.0003132,7]
[364729442,1749220301320,-159.39930917,0.0003132,7]
[364729443,1749220301330,-152.46451654,0.0003132,7]
[364729444,1749220301340,-196.67670107,0.0003132,7]
[364729445,1749220301350,-202.0,0.00031369,7]
[364729446,1749220301360,-506.86536874,0.00031381,2]
[364729447,1749220301369,-150.0,0.00031401,2]
[364729448,1749220301379,-223.0315306,0.00031477,2]
[364729449,1749220301395,-162.380719,0.00031477,2]
[364729450,1749220301405,-2222.878919,0.00031479,7]
[364729451,1749220301415,-2069.069336,0.00031479,7]
[364729452,1749220301424,-480.0,0.00031479,7]
[364729453,1749220301435,-617.81,0.00031479,7]
[364729454,1749220301444,-480.0,0.00031479,7]
[364729455,1749220301455,-480.0,0.00031479,7]
[364729456,1749220301465,-324.96672663,0.00031479,7]
[364729457,1749220301475,-1997.23,0.00031479,7]
[364729458,1749220301485,-480.0,0.00031479,7]
[364729459,1749220301495,-847.34,0.00031479,7]
[364729460,1749220301504,-480.0,0.00031479,7]
[364729461,1749220301514,-480.0,0.00031479,7]
[364729462,1749220301523,-480.0,0.00031479,7]
[364729463,1749220301534,-480.0,0.00031479,7]
[364729464,1749220301544,-188.19162205,0.00031479,7]
[364729465,1749220301555,-557.72,0.00031479,7]
[364729466,1749220301566,-480.0,0.00031479,7]
[364729467,1749220301576,-480.0,0.00031479,7]
[364729468,1749220301586,-681.93,0.00031479,7]
[364729469,1749220301596,-480.0,0.00031479,7]
[364729470,1749220301605,-480.0,0.00031479,7]
[364729471,1749220301615,-683.06,0.00031479,7]
[364729472,1749220301624,-618.15788722,0.00031479,7]
[364729473,1749220301634,-1194.15,0.00031479,7]
[364729474,1749220301643,-480.0,0.00031479,7]
[364729475,1749220301653,-480.0,0.00031479,7]
[364729476,1749220301663,-580.02581832,0.00031479,7]
[364729477,1749220301672,-504.02,0.00031479,7]
[364729478,1749220301682,-699.24,0.00031479,7]
[364729479,1749220301693,-395.96491286,0.00031479,7]
[364729480,1749220301898,-480.0,0.00031479,7]
[364729481,1749220301908,-480.0,0.00031479,7]
[364729482,1749220301918,-595.35190233,0.00031479,7]
[364729483,1749220301927,-480.0,0.00031479,7]
[364729484,1749220301937,-610.65,0.00031479,7]
[364729485,1749220301948,-819.51,0.00031479,7]
[364729486,1749220301958,-480.0,0.00031479,7]
[364729487,1749220301967,-480.0,0.00031479,7]
[364729488,1749220301977,-979.25,0.00031479,7]
[364729489,1749220301987,-613.49,0.00031479,7]
[364729490,1749220301997,-480.0,0.00031479,7]
[364729491,1749220302006,-480.0,0.00031479,7]
[364729492,1749220302016,-295.16793835,0.00031479,7]
[364729493,1749220302027,-1135.81,0.00031479,7]
[364729494,1749220302037,-480.0,0.00031479,7]
[364729495,1749220302047,-504.16,0.00031479,7]
[364729496,1749220302058,-480.0,0.00031479,7]
[364729497,1749220302068,-480.0,0.00031479,7]
[364729498,1749220302078,-741.75,0.00031479,7]
[364729499,1749220302087,-480.0,0.00031479,7]
[364729500,1749220302097,-830.77,0.00031479,7]
[364729501,1749220302107,-480.0,0.00031479,7]
[364729502,1749220302117,-480.0,0.00031479,7]
[364729503,1749220302126,-843.49,0.00031479,7]
[364729504,1749220302136,-480.0,0.00031479,7]
[364729505,1749220302146,-480.0,0.00031479,7]
[364729506,1749220302157,-480.0,0.00031479,7]
[364729507,1749220302167,-2600.34,0.00031479,7]
[364729508,1749220302177,-620.62,0.00031479,7]
[364729509,1749220302187,-1342.16,0.00031479,7]
[364729510,1749220302198,-847.94,0.00031479,7]
[364729511,1749220302207,-675.47,0.00031479,30]
[364729512,1749220302218,-507.4,0.00031479,7]
[364729513,1749220302228,-480.0,0.00031479,7]
[364729514,1749220302238,-621.25,0.00031479,7]
[364729515,1749220302248,-694.31,0.00031479,7]
[364729516,1749220302258,-480.0,0.00031479,7]
[364729517,1749220302268,-480.0,0.00031479,7]
[364729518,1749220302277,-318.82439043,0.00031479,7]
[364729519,1749220302288,-480.0,0.00031479,7]
[364729520,1749220302298,-480.0,0.00031479,7]
[364729521,1749220302308,-480.0,0.00031479,7]
[364729522,1749220302318,-529.44,0.00031479,7]
[364729523,1749220302328,-737.4,0.00031479,7]
[364729524,1749220302338,-480.0,0.00031479,7]
[364729525,1749220302348,-721.19,0.00031479,7]
[364729526,1749220302357,-1441.03,0.00031479,7]
[364729527,1749220302367,-1003.2,0.00031479,7]
[364729528,1749220302377,-480.0,0.00031479,7]
[364729529,1749220302390,-480.0,0.00031479,7]
[364729530,1749220302400,-1057.7,0.00031479,7]
[364729531,1749220302409,-480.0,0.00031479,7]
[364729532,1749220302420,-480.0,0.00031479,7]
[364729533,1749220302429,-729.61,0.00031479,7]
[364729534,1749220302438,-730.84,0.00031479,7]
[364729535,1749220302449,-689.59,0.00031479,7]
[364729536,1749220302459,-358.08376147,0.00031479,7]
[364729537,1749220302470,-1560.79,0.00031479,7]
[364729538,1749220302481,-480.0,0.00031479,7]
[364729539,1749220302490,-1787.56,0.00031479,7]
[364729540,1749220302499,-1063.57,0.00031479,7]
[364729541,1749220302509,-775.63,0.00031479,7]
[364729542,1749220302519,-1536.34,0.00031479,7]
[364729543,1749220302529,-480.0,0.00031479,7]
[364729544,1749220302539,-480.0,0.00031479,7]
[364729545,1749220302548,-480.0,0.00031479,7]
[364729546,1749220302558,-1206.52,0.00031479,7]
[364729547,1749220302568,-608.45,0.00031479,7]
[364729548,1749220302577,-298.05959272,0.00031479,7]
[364729549,1749220302587,-920.1,0.00031479,7]
[364729550,1749220302596,-480.0,0.00031479,7]
[364729551,1749220302606,-480.0,0.00031479,7]
[364729552,1749220302616,-538.13401911,0.00031479,7]
[364729553,1749220302626,-1792.16,0.00031479,7]
[364729554,1749220302636,-862.41,0.00031479,7]
[364729555,1749220302645,-490.39,0.00031479,7]
[364729556,1749220302655,-365.144635,0.00031479,7]
[364729557,1749220302664,-480.0,0.00031479,7]
[364729558,1749220302673,-1262.12,0.00031479,7]
[364729559,1749220302683,-480.0,0.00031479,7]
[364729560,1749220302692,-1912.2,0.00031479,7]
[364729561,1749220302701,-480.0,0.00031479,7]
[364729562,1749220302711,-789.07,0.00031479,7]
[364729563,1749220302721,-480.0,0.00031479,7]
[364729564,1749220302731,-486.86,0.00031479,7]
[364729565,1749220302740,-480.0,0.00031479,7]
[364729566,1749220302750,-1009.26,0.00031479,7]
[364729567,1749220302759,-395.4216793,0.00031479,7]
[364729568,1749220302769,-1163.93,0.00031479,7]
[364729569,1749220302778,-1438.84,0.00031479,7]
[364729570,1749220302787,-480.0,0.00031479,7]
[364729571,1749220302797,-480.0,0.00031479,7]
[364729572,1749220302807,-480.0,0.00031479,7]
[364729573,1749220302817,-1570.73,0.00031479,7]
[364729574,1749220302826,-480.0,0.00031479,7]
[364729575,1749220302838,-480.0,0.00031479,7]
[364729576,1749220302848,-480.0,0.00031479,7]
[364729577,1749220302858,-528.17,0.00031479,7]
[364729578,1749220302867,-761.22,0.00031479,7]
[364729579,1749220302877,-480.0,0.00031479,7]
[364729580,1749220302886,-480.0,0.00031479,7]
[364729581,1749220302896,-1220.04,0.00031479,7]
[364729582,1749220302905,-597.43,0.00031479,7]
[364729583,1749220302915,-1362.42,0.00031479,7]
[364729584,1749220302925,-480.0,0.00031479,7]
[364729585,1749220302934,-480.0,0.00031479,7]
[364729586,1749220302944,-1189.05,0.00031479,7]
[364729587,1749220302954,-480.0,0.00031479,7]
[364729588,1749220302964,-985.5,0.00031479,7]
[364729589,1749220302974,-820.31,0.00031479,7]
[364729590,1749220302984,-572.01,0.00031479,7]
[364729591,1749220302993,-1807.04,0.00031479,7]
[364729592,1749220303003,-1262.79,0.00031479,7]
[364729593,1749220303013,-2516.73,0.00031479,7]
[364729594,1749220303023,-480.0,0.00031479,7]
[364729595,1749220303033,-778.34,0.00031479,7]
[364729596,1749220303043,-480.0,0.00031479,7]
[364729597,1749220303052,-839.08,0.00031479,7]
[364729598,1749220303062,-11285.31,0.00031479,7]
[364729599,1749220303072,-1101.15,0.00031479,7]
[364729600,1749220303082,-480.0,0.00031479,7]
[364729601,1749220303091,-3214.08,0.00031479,7]
[364729602,1749220303101,-480.0,0.00031479,7]
[364729603,1749220303110,-480.0,0.00031479,7]
[364729604,1749220303120,-2964.96,0.00031479,7]
[364729605,1749220303130,-873.96,0.00031479,7]
[364729606,1749220303140,-4607.18,0.00031479,7]
[364729607,1749220303149,-480.0,0.00031479,7]
[364729608,1749220303160,-20710.06,0.00031479,7]
[364729609,1749220303170,-1067.02,0.00031479,7]
[364729610,1749220303179,-279.73589825,0.00031479,7]
[364729611,1749220303189,-612.42,0.00031479,7]
[364729612,1749220303199,-3585.66,0.00031479,7]
[364729613,1749220303209,-445.57152634,0.00031479,7]
[364729614,1749220303219,-1186.93,0.00031479,7]
[364729615,1749220303228,-1255.39,0.00031479,7]
[364729616,1749220303238,-2364.45,0.00031479,7]
[364729617,1749220303249,-1399.55,0.00031479,7]
[364729618,1749220303259,-825.25,0.00031479,7]
[364729619,1749220303269,-1108.3,0.00031479,7]
[364729620,1749220303279,-491.87,0.00031479,7]
[364729621,1749220303288,-726.54,0.00031479,7]
[364729622,1749220303299,-2028.66,0.00031479,7]
[364729623,1749220303309,-1692.8,0.00031479,7]
[364729624,1749220303319,-781.47,0.00031479,7]
[364729625,1749220303328,-1466.18,0.00031479,7]
[364729626,1749220303339,-73191.22,0.00031479,7]
[364729627,1749220303349,-1031.1,0.00031479,7]
[364729628,1749220303359,-1187.36,0.00031479,7]
[364729629,1749220303368,-2308.95,0.00031479,7]
[364729630,1749220303379,-1807.35,0.00031479,7]
[364729631,1749220303393,-1402.86,0.00031479,7]
[364729632,1749220303403,-1648.94,0.00031479,7]
[364729633,1749220303414,-1912.7,0.00031479,7]
[364729634,1749220303426,-4297.8,0.00031479,7]
[364729635,1749220303438,-1127.05,0.00031479,7]
[364729636,1749220303450,-480.0,0.00031479,7]
[364729637,1749220303460,-1433.3,0.00031479,7]
[364729638,1749220303471,-793.28,0.00031479,7]
[364729639,1749220303480,-480.0,0.00031479,7]
[364729640,1749220303490,-845.41,0.00031479,7]
[364729641,1749220303500,-1143.75,0.00031479,7]
[364729642,1749220303511,-4339.46,0.00031479,7]
[364729643,1749220303521,-550.99,0.00031479,7]
[364729644,1749220303530,-480.0,0.00031479,7]
[364729645,1749220303540,-480.0,0.00031479,7]
[364729646,1749220303551,-558.97,0.00031479,7]
[364729647,1749220303563,-705.32,0.00031479,7]
[364729648,1749220303574,-638.49,0.00031479,7]
[364729649,1749220303583,-646.01,0.00031479,7]
[364729650,1749220303594,-5821.7,0.00031479,7]
[364729651,1749220303604,-1415.28,0.00031479,7]
[364729652,1749220303615,-2219.2,0.00031479,7]
[364729653,1749220303624,-2997.28,0.00031479,7]
[364729654,1749220303636,-4881.17,0.00031479,7]
[364729655,1749220303646,-1494.8,0.00031479,7]
[364729656,1749220303656,-480.0,0.00031479,7]
[364729657,1749220303666,-189.42276515,0.00031479,7]
[364729658,1749220303675,-761.61,0.00031479,7]
[364729659,1749220303684,-2109.18,0.00031479,7]
[364729660,1749220303694,-1044.45,0.00031479,7]
[364729661,1749220303705,-480.0,0.00031479,7]
[364729662,1749220303715,-617.24,0.00031479,7]
[364729663,1749220303724,-1804.22,0.00031479,7]
[364729664,1749220303734,-776.29,0.00031479,7]
[364729665,1749220303743,-6318.65,0.00031479,7]
[364729666,1749220303754,-5806.79,0.00031479,7]
[364729667,1749220303764,-902.05,0.00031479,7]
[364729668,1749220303774,-480.0,0.00031479,7]
[364729669,1749220303784,-677.86,0.00031479,7]
[364729670,1749220303794,-17052.87,0.00031479,7]
[364729671,1749220303804,-1448.58,0.00031479,7]
[364729672,1749220303814,-480.0,0.00031479,7]
[364729673,1749220303824,-480.0,0.00031479,7]